[Event "Titled Tuesday Blitz December 13 Early 2022"]
[White "Deac, Bogdan-Daniel"]
[Black "Navara, David"]
[WhiteFideId "1226380"]
[BlackFideId "309095"]
[WhiteElo "2649"]
[BlackElo "2676"]
[Result "1/2-1/2"]
[Round "08"]
[TimeControl "180+1"]
[Date "2022.12.13"]
[WhiteClock "0:00:08"]
[BlackClock "0:00:05"]

1. e4 {[%clk 0:03:00]}  c6 {[%clk 0:02:59]} 2. Nf3 {[%clk 0:03:00]}  d5 {[%clk 0:03:00]} 3. Nc3 {[%clk 0:03:00]}  Bg4 {[%clk 0:03:00]} 4. h3 {[%clk 0:03:00]}  Bxf3 {[%clk 0:03:00]} 5. Qxf3 {[%clk 0:03:01]}  e6 {[%clk 0:03:00]} 6. d4 {[%clk 0:03:01]}  Nf6 {[%clk 0:02:56]} 7. exd5 {[%clk 0:02:52]}  cxd5 {[%clk 0:02:57]} 8. Ne2 {[%clk 0:02:45]}  Nc6 {[%clk 0:02:55]} 9. c3 {[%clk 0:02:45]}  h6 {[%clk 0:02:48]} 10. Ng3 {[%clk 0:02:43]}  Bd6 {[%clk 0:02:40]} 11. Bd3 {[%clk 0:02:29]}  O-O {[%clk 0:02:27]} 12. O-O {[%clk 0:02:26]}  e5 {[%clk 0:02:27]} 13. dxe5 {[%clk 0:02:25]}  Nxe5 {[%clk 0:02:28]} 14. Qd1 {[%clk 0:02:24]}  Nxd3 {[%clk 0:02:27]} 15. Qxd3 {[%clk 0:02:24]}  Re8 {[%clk 0:02:17]} 16. Nf5 {[%clk 0:02:23]}  Ne4 {[%clk 0:01:59]} 17. Rd1 {[%clk 0:02:14]}  Bc5 {[%clk 0:01:56]} 18. Be3 {[%clk 0:02:03]}  Qb6 {[%clk 0:01:49]} 19. Bxc5 {[%clk 0:01:47]}  Qxc5 {[%clk 0:01:49]} 20. Qd4 {[%clk 0:01:26]}  Qxd4 {[%clk 0:01:49]} 21. Rxd4 {[%clk 0:01:27]}  Re5 {[%clk 0:01:43]} 22. Ne3 {[%clk 0:01:25]}  Nf6 {[%clk 0:01:42]} 23. Rad1 {[%clk 0:01:23]}  Rae8 {[%clk 0:01:31]} 24. Kf1 {[%clk 0:01:22]}  R8e6 {[%clk 0:01:22]} 25. Nxd5 {[%clk 0:01:18]}  Nxd5 {[%clk 0:01:23]} 26. Rxd5 {[%clk 0:01:18]}  Rxd5 {[%clk 0:01:24]} 27. Rxd5 {[%clk 0:01:18]}  Ra6 {[%clk 0:01:25]} 28. Rd8+ {[%clk 0:01:01]}  Kh7 {[%clk 0:01:24]} 29. Rd7 {[%clk 0:00:58]}  Rb6 {[%clk 0:01:03]} 30. b3 {[%clk 0:00:52]}  Kg6 {[%clk 0:01:03]} 31. c4 {[%clk 0:00:51]}  Ra6 {[%clk 0:00:54]} 32. Rxb7 {[%clk 0:00:33]}  Rxa2 {[%clk 0:00:53]} 33. c5 {[%clk 0:00:34]}  a5 {[%clk 0:00:42]} 34. c6 {[%clk 0:00:17]}  Rc2 {[%clk 0:00:41]} 35. c7 {[%clk 0:00:15]}  Kf6 {[%clk 0:00:39]} 36. Ke1 {[%clk 0:00:11]}  Ke6 {[%clk 0:00:38]} 37. Kd1 {[%clk 0:00:11]}  Rc5 {[%clk 0:00:39]} 38. Kd2 {[%clk 0:00:09]}  g5 {[%clk 0:00:29]} 39. Rb6+ {[%clk 0:00:06]}  Ke7 {[%clk 0:00:21]} 40. Rxh6 {[%clk 0:00:04]}  Rxc7 {[%clk 0:00:22]} 41. Rh5 {[%clk 0:00:03]}  Kf6 {[%clk 0:00:19]} 42. Rh6+ {[%clk 0:00:03]}  Kg7 {[%clk 0:00:11]} 43. Rb6 {[%clk 0:00:03]}  Rc5 {[%clk 0:00:12]} 44. Kd3 {[%clk 0:00:02]}  f6 {[%clk 0:00:10]} 45. g3 {[%clk 0:00:03]}  Kg6 {[%clk 0:00:09]} 46. f3 {[%clk 0:00:03]}  Kf5 {[%clk 0:00:08]} 47. Kd4 {[%clk 0:00:02]}  Re5 {[%clk 0:00:06]} 48. Ra6 {[%clk 0:00:02]}  Kg6 {[%clk 0:00:05]} 49. Rc6 {[%clk 0:00:02]}  Rf5 {[%clk 0:00:05]} 50. Rc3 {[%clk 0:00:02]}  Rb5 {[%clk 0:00:05]} 51. Kc4 {[%clk 0:00:02]}  Rb4+ {[%clk 0:00:05]} 52. Kc5 {[%clk 0:00:03]}  Kf5 {[%clk 0:00:05]} 53. Rd3 {[%clk 0:00:03]}  Kg6 {[%clk 0:00:05]} 54. g4 {[%clk 0:00:03]}  Kh6 {[%clk 0:00:04]} 55. Rc3 {[%clk 0:00:02]}  Kg6 {[%clk 0:00:05]} 56. Re3 {[%clk 0:00:03]}  Kh6 {[%clk 0:00:05]} 57. Rd3 {[%clk 0:00:02]}  Kg6 {[%clk 0:00:05]} 58. Re3 {[%clk 0:00:02]}  Kh6 {[%clk 0:00:05]} 59. Re6 {[%clk 0:00:03]}  Kg6 {[%clk 0:00:04]} 60. Rb6 {[%clk 0:00:02]}  Rf4 {[%clk 0:00:04]} 61. Kb5 {[%clk 0:00:02]}  Rxf3 {[%clk 0:00:04]} 62. Kxa5 {[%clk 0:00:03]}  Rxh3 {[%clk 0:00:04]} 63. Rb4 {[%clk 0:00:02]}  f5 {[%clk 0:00:03]} 64. Rb6+ {[%clk 0:00:02]}  Kf7 {[%clk 0:00:04]} 65. gxf5 {[%clk 0:00:03]}  Rf3 {[%clk 0:00:03]} 66. b4 {[%clk 0:00:03]}  g4 {[%clk 0:00:02]} 67. b5 {[%clk 0:00:04]}  g3 {[%clk 0:00:02]} 68. Rg6 {[%clk 0:00:04]}  Ra3+ {[%clk 0:00:01]} 69. Kb6 {[%clk 0:00:04]}  Rb3 {[%clk 0:00:02]} 70. Ka6 {[%clk 0:00:04]}  Ra3+ {[%clk 0:00:02]} 71. Kb7 {[%clk 0:00:04]}  Rb3 {[%clk 0:00:02]} 72. b6 {[%clk 0:00:05]}  Rf3 {[%clk 0:00:01]} 73. Ka7 {[%clk 0:00:05]}  Ra3+ {[%clk 0:00:01]} 74. Kb8 {[%clk 0:00:05]}  Rb3 {[%clk 0:00:02]} 75. b7 {[%clk 0:00:05]}  Rc3 {[%clk 0:00:01]} 76. Ka7 {[%clk 0:00:05]}  Ra3+ {[%clk 0:00:01]} 77. Kb8 {[%clk 0:00:05]}  Rc3 {[%clk 0:00:01]} 78. Ka7 {[%clk 0:00:05]}  Ra3+ {[%clk 0:00:02]} 79. Kb6 {[%clk 0:00:06]}  Rb3+ {[%clk 0:00:02]} 80. Kc6 {[%clk 0:00:05]}  Rc3+ {[%clk 0:00:03]} 81. Kd7 {[%clk 0:00:05]}  Rb3 {[%clk 0:00:03]} 82. Kc8 {[%clk 0:00:06]}  Rc3+ {[%clk 0:00:04]} 83. Kb8 {[%clk 0:00:06]}  Rb3 {[%clk 0:00:04]} 84. Rg4 {[%clk 0:00:06]}  Kf6 {[%clk 0:00:03]} 85. Rg8 {[%clk 0:00:06]}  Kxf5 {[%clk 0:00:03]} 86. Kc7 {[%clk 0:00:06]}  Rxb7+ {[%clk 0:00:03]} 87. Kxb7 {[%clk 0:00:06]}  Kf4 {[%clk 0:00:04]} 88. Kc6 {[%clk 0:00:06]}  Kf3 {[%clk 0:00:04]} 89. Kd5 {[%clk 0:00:07]}  g2 {[%clk 0:00:05]} 90. Kd4 {[%clk 0:00:07]}  Kf2 {[%clk 0:00:05]} 91. Rxg2+ {[%clk 0:00:08]}  Kxg2 {[%clk 0:00:05]} 1/2-1/2


[Site "https://www.chess.com"]

[Event "Titled Tuesday Blitz December 13 Early 2022"]
[White "Derraugh, Geordie"]
[Black "Begunov, Konstantin"]
[WhiteFideId "2603950"]
[BlackFideId "4118510"]
[WhiteElo "2082"]
[BlackElo "2141"]
[Result "0-1"]
[Round "08"]
[TimeControl "180+1"]
[Date "2022.12.14"]
[WhiteClock "0:00:03"]
[BlackClock "0:00:28"]

1. e4 {[%clk 0:03:00]}  c5 {[%clk 0:02:59]} 2. Nf3 {[%clk 0:03:00]}  d6 {[%clk 0:03:00]} 3. d4 {[%clk 0:03:00]}  cxd4 {[%clk 0:03:01]} 4. Qxd4 {[%clk 0:03:00]}  Nc6 {[%clk 0:02:59]} 5. Qe3 {[%clk 0:03:00]}  Nf6 {[%clk 0:02:58]} 6. Be2 {[%clk 0:03:00]}  Bg4 {[%clk 0:02:56]} 7. O-O {[%clk 0:02:59]}  e6 {[%clk 0:02:56]} 8. c4 {[%clk 0:02:55]}  Rc8 {[%clk 0:02:53]} 9. Nc3 {[%clk 0:02:50]}  Bxf3 {[%clk 0:02:37]} 10. Bxf3 {[%clk 0:02:44]}  Ne5 {[%clk 0:02:35]} 11. b3 {[%clk 0:02:43]}  Nxf3+ {[%clk 0:02:35]} 12. Qxf3 {[%clk 0:02:44]}  Be7 {[%clk 0:02:33]} 13. Rd1 {[%clk 0:02:23]}  Qc7 {[%clk 0:02:23]} 14. Nb5 {[%clk 0:02:21]}  Qb8 {[%clk 0:02:23]} 15. Ba3 {[%clk 0:02:16]}  Rd8 {[%clk 0:02:11]} 16. Qd3 {[%clk 0:01:34]}  O-O {[%clk 0:02:06]} 17. Nxd6 {[%clk 0:01:09]}  Nxe4 {[%clk 0:01:41]} 18. Qxe4 {[%clk 0:01:02]}  Bxd6 {[%clk 0:01:41]} 19. Bxd6 {[%clk 0:01:02]}  Rxd6 {[%clk 0:01:42]} 20. Rxd6 {[%clk 0:01:02]}  Qxd6 {[%clk 0:01:43]} 21. Qxb7 {[%clk 0:01:02]}  Qd4 {[%clk 0:01:39]} 22. Rf1 {[%clk 0:01:01]}  Rd8 {[%clk 0:01:38]} 23. h3 {[%clk 0:00:57]}  g6 {[%clk 0:01:33]} 24. Qc7 {[%clk 0:00:52]}  Rd7 {[%clk 0:01:30]} 25. Qc8+ {[%clk 0:00:51]}  Kg7 {[%clk 0:01:29]} 26. a4 {[%clk 0:00:26]}  a5 {[%clk 0:01:25]} 27. Qc6 {[%clk 0:00:25]}  Qd2 {[%clk 0:01:13]} 28. Qb5 {[%clk 0:00:24]}  Rd3 {[%clk 0:00:59]} 29. c5 {[%clk 0:00:23]}  Qc2 {[%clk 0:00:56]} 30. Qxa5 {[%clk 0:00:17]}  Rxb3 {[%clk 0:00:56]} 31. Qc7 {[%clk 0:00:05]}  Rc3 {[%clk 0:00:32]} 32. Qe5+ {[%clk 0:00:05]}  Kh6 {[%clk 0:00:32]} 33. Qf4+ {[%clk 0:00:04]}  Kg7 {[%clk 0:00:31]} 34. Qd4+ {[%clk 0:00:04]}  Kh6 {[%clk 0:00:31]} 35. a5 {[%clk 0:00:02]}  Rxc5 {[%clk 0:00:31]} 36. a6 {[%clk 0:00:03]}  Ra5 {[%clk 0:00:28]} 0-1


[Site "https://www.chess.com"]

[Event "Titled Tuesday Blitz December 13 Early 2022"]
[White "Deuer, Marius"]
[Black "Boros, Denes"]
[WhiteFideId "16236432"]
[BlackFideId "722340"]
[WhiteElo "2226"]
[BlackElo "2464"]
[Result "0-1"]
[Round "08"]
[TimeControl "180+1"]
[Date "2022.12.13"]
[WhiteClock "0:01:34"]
[BlackClock "0:02:31"]

1. d4 {[%clk 0:02:53]}  d6 {[%clk 0:03:00]} 2. c4 {[%clk 0:02:52]}  Nf6 {[%clk 0:02:57]} 3. Nf3 {[%clk 0:02:53]}  Bf5 {[%clk 0:02:57]} 4. Nc3 {[%clk 0:02:53]}  Nbd7 {[%clk 0:02:57]} 5. g3 {[%clk 0:02:53]}  e5 {[%clk 0:02:57]} 6. Bg2 {[%clk 0:02:53]}  c6 {[%clk 0:02:57]} 7. O-O {[%clk 0:02:53]}  h6 {[%clk 0:02:58]} 8. Re1 {[%clk 0:02:52]}  Be7 {[%clk 0:02:55]} 9. e4 {[%clk 0:02:51]}  Bg4 {[%clk 0:02:56]} 10. Be3 {[%clk 0:02:49]}  O-O {[%clk 0:02:55]} 11. h3 {[%clk 0:02:49]}  Bh5 {[%clk 0:02:56]} 12. g4 {[%clk 0:02:46]}  Bg6 {[%clk 0:02:56]} 13. Nh4 {[%clk 0:02:47]}  Qa5 {[%clk 0:02:51]} 14. Nf5 {[%clk 0:02:42]}  Rfe8 {[%clk 0:02:50]} 15. Rb1 {[%clk 0:02:40]}  Bf8 {[%clk 0:02:48]} 16. b4 {[%clk 0:02:39]}  Qc7 {[%clk 0:02:49]} 17. Qd2 {[%clk 0:02:36]}  Bxf5 {[%clk 0:02:45]} 18. gxf5 {[%clk 0:02:24]}  a5 {[%clk 0:02:42]} 19. a3 {[%clk 0:02:21]}  axb4 {[%clk 0:02:42]} 20. axb4 {[%clk 0:02:22]}  Ra3 {[%clk 0:02:42]} 21. Qb2 {[%clk 0:02:22]}  Rea8 {[%clk 0:02:40]} 22. Ra1 {[%clk 0:02:22]}  Rxa1 {[%clk 0:02:40]} 23. Rxa1 {[%clk 0:02:23]}  Re8 {[%clk 0:02:39]} 24. d5 {[%clk 0:02:20]}  cxd5 {[%clk 0:02:35]} 25. cxd5 {[%clk 0:02:20]}  Nb6 {[%clk 0:02:35]} 26. Nb5 {[%clk 0:02:15]}  Qd7 {[%clk 0:02:35]} 27. Bf1 {[%clk 0:01:38]}  Nc8 {[%clk 0:02:31]} 28. Bg2 {[%clk 0:01:34]}  Qxb5 {[%clk 0:02:31]} 0-1


[Site "https://www.chess.com"]

[Event "Titled Tuesday Blitz December 13 Early 2022"]
[White "Fabris, Alberto"]
[Black "Molina Carretero, Daniel"]
[WhiteFideId "801348"]
[BlackFideId "32071914"]
[WhiteElo "2183"]
[BlackElo "2109"]
[Result "0-1"]
[Round "08"]
[TimeControl "180+1"]
[Date "2022.12.14"]
[WhiteClock "0:00:06"]
[BlackClock "0:00:02"]

1. e4 {[%clk 0:03:00]}  c5 {[%clk 0:02:59]} 2. Nf3 {[%clk 0:02:59]}  d6 {[%clk 0:02:59]} 3. d4 {[%clk 0:02:59]}  cxd4 {[%clk 0:03:00]} 4. Nxd4 {[%clk 0:02:59]}  Nf6 {[%clk 0:03:00]} 5. Nc3 {[%clk 0:03:00]}  g6 {[%clk 0:03:01]} 6. Be2 {[%clk 0:02:58]}  Bg7 {[%clk 0:03:01]} 7. O-O {[%clk 0:02:58]}  Nc6 {[%clk 0:03:02]} 8. Be3 {[%clk 0:02:57]}  O-O {[%clk 0:03:02]} 9. f4 {[%clk 0:02:53]}  Qb6 {[%clk 0:02:59]} 10. Qd2 {[%clk 0:02:48]}  Nxe4 {[%clk 0:02:53]} 11. Nxe4 {[%clk 0:02:46]}  Bxd4 {[%clk 0:02:51]} 12. Bxd4 {[%clk 0:02:42]}  Qxd4+ {[%clk 0:02:52]} 13. Qxd4 {[%clk 0:02:41]}  Nxd4 {[%clk 0:02:52]} 14. Bd3 {[%clk 0:02:40]}  Bf5 {[%clk 0:02:32]} 15. c3 {[%clk 0:02:36]}  Ne6 {[%clk 0:02:25]} 16. Rad1 {[%clk 0:02:31]}  Rac8 {[%clk 0:02:23]} 17. Ng3 {[%clk 0:02:27]}  Bxd3 {[%clk 0:02:22]} 18. Rxd3 {[%clk 0:02:28]}  Nc5 {[%clk 0:02:19]} 19. Rd2 {[%clk 0:02:22]}  b5 {[%clk 0:02:12]} 20. Re1 {[%clk 0:02:21]}  Rc7 {[%clk 0:02:11]} 21. f5 {[%clk 0:02:19]}  Kg7 {[%clk 0:02:10]} 22. h3 {[%clk 0:02:09]}  a5 {[%clk 0:02:06]} 23. fxg6 {[%clk 0:02:05]}  hxg6 {[%clk 0:02:04]} 24. Ne4 {[%clk 0:02:03]}  Nxe4 {[%clk 0:02:00]} 25. Rxe4 {[%clk 0:02:04]}  Rb8 {[%clk 0:01:55]} 26. Kf2 {[%clk 0:01:54]}  Rb6 {[%clk 0:01:52]} 27. Kf3 {[%clk 0:01:51]}  e6 {[%clk 0:01:51]} 28. g4 {[%clk 0:01:46]}  d5 {[%clk 0:01:51]} 29. Re1 {[%clk 0:01:43]}  g5 {[%clk 0:01:51]} 30. Ke3 {[%clk 0:01:27]}  Rc4 {[%clk 0:01:48]} 31. Rd4 {[%clk 0:01:25]}  Kg6 {[%clk 0:01:43]} 32. Rf1 {[%clk 0:01:24]}  Rbc6 {[%clk 0:01:39]} 33. Kd3 {[%clk 0:01:15]}  b4 {[%clk 0:01:36]} 34. Rxc4 {[%clk 0:01:11]}  Rxc4 {[%clk 0:01:35]} 35. cxb4 {[%clk 0:01:06]}  Rxb4 {[%clk 0:01:29]} 36. b3 {[%clk 0:01:03]}  a4 {[%clk 0:01:26]} 37. Kc3 {[%clk 0:01:02]}  Rb8 {[%clk 0:00:56]} 38. bxa4 {[%clk 0:01:00]}  e5 {[%clk 0:00:52]} 39. a5 {[%clk 0:00:58]}  f6 {[%clk 0:00:46]} 40. a4 {[%clk 0:00:52]}  Kf7 {[%clk 0:00:38]} 41. h4 {[%clk 0:00:40]}  gxh4 {[%clk 0:00:32]} 42. g5 {[%clk 0:00:40]}  h3 {[%clk 0:00:32]} 43. Rxf6+ {[%clk 0:00:38]}  Kg7 {[%clk 0:00:25]} 44. Rh6 {[%clk 0:00:34]}  d4+ {[%clk 0:00:13]} 45. Kc4 {[%clk 0:00:33]}  Rc8+ {[%clk 0:00:13]} 46. Kb5 {[%clk 0:00:23]}  d3 {[%clk 0:00:08]} 47. Rxh3 {[%clk 0:00:20]}  Rd8 {[%clk 0:00:08]} 48. Rh1 {[%clk 0:00:16]}  d2 {[%clk 0:00:08]} 49. Rd1 {[%clk 0:00:16]}  e4 {[%clk 0:00:09]} 50. a6 {[%clk 0:00:14]}  e3 {[%clk 0:00:09]} 51. a7 {[%clk 0:00:14]}  Ra8 {[%clk 0:00:07]} 52. Kb6 {[%clk 0:00:07]}  e2 {[%clk 0:00:07]} 53. Rxd2 {[%clk 0:00:07]}  e1=Q {[%clk 0:00:07]} 54. Rd7+ {[%clk 0:00:07]}  Kg6 {[%clk 0:00:06]} 55. a5 {[%clk 0:00:07]}  Qb4+ {[%clk 0:00:06]} 56. Kc6 {[%clk 0:00:06]}  Qxa5 {[%clk 0:00:05]} 57. Rb7 {[%clk 0:00:06]}  Qa6+ {[%clk 0:00:03]} 58. Kc7 {[%clk 0:00:06]}  Rxa7 {[%clk 0:00:02]} 0-1


[Site "https://www.chess.com"]

[Event "Titled Tuesday Blitz December 13 Early 2022"]
[White "Farmani Anosheh, Armin"]
[Black "Levine, David"]
[WhiteFideId "24613240"]
[BlackFideId "2011611"]
[WhiteElo "2289"]
[BlackElo "2149"]
[Result "1-0"]
[Round "08"]
[TimeControl "180+1"]
[Date "2022.12.14"]
[WhiteClock "0:00:07"]
[BlackClock "0:00:10"]

1. d4 {[%clk 0:03:00]}  d5 {[%clk 0:02:59]} 2. c4 {[%clk 0:03:01]}  dxc4 {[%clk 0:02:59]} 3. e4 {[%clk 0:03:01]}  Nf6 {[%clk 0:02:56]} 4. e5 {[%clk 0:03:00]}  Nd5 {[%clk 0:02:56]} 5. Bxc4 {[%clk 0:03:01]}  e6 {[%clk 0:02:46]} 6. Nf3 {[%clk 0:03:00]}  Be7 {[%clk 0:02:45]} 7. O-O {[%clk 0:03:00]}  O-O {[%clk 0:02:45]} 8. Nc3 {[%clk 0:03:00]}  b6 {[%clk 0:02:42]} 9. Nxd5 {[%clk 0:02:54]}  exd5 {[%clk 0:02:42]} 10. Bd3 {[%clk 0:02:55]}  c5 {[%clk 0:02:30]} 11. Re1 {[%clk 0:02:54]}  Nc6 {[%clk 0:02:28]} 12. Be3 {[%clk 0:02:48]}  Bg4 {[%clk 0:02:17]} 13. h3 {[%clk 0:02:36]}  Bh5 {[%clk 0:02:10]} 14. Be2 {[%clk 0:01:54]}  c4 {[%clk 0:01:55]} 15. Rf1 {[%clk 0:01:40]}  b5 {[%clk 0:01:48]} 16. Ne1 {[%clk 0:01:38]}  Bxe2 {[%clk 0:01:31]} 17. Qxe2 {[%clk 0:01:39]}  f6 {[%clk 0:01:28]} 18. f4 {[%clk 0:01:36]}  f5 {[%clk 0:01:23]} 19. g4 {[%clk 0:01:35]}  Qd7 {[%clk 0:01:21]} 20. Qg2 {[%clk 0:01:32]}  Nd8 {[%clk 0:01:16]} 21. Nf3 {[%clk 0:01:32]}  Ne6 {[%clk 0:01:12]} 22. Kh1 {[%clk 0:01:31]}  Kh8 {[%clk 0:01:11]} 23. Rg1 {[%clk 0:01:29]}  fxg4 {[%clk 0:00:54]} 24. Qxg4 {[%clk 0:01:29]}  g6 {[%clk 0:00:52]} 25. h4 {[%clk 0:01:16]}  Rf5 {[%clk 0:00:51]} 26. Rg2 {[%clk 0:01:12]}  Raf8 {[%clk 0:00:47]} 27. Rh2 {[%clk 0:01:09]}  Ng7 {[%clk 0:00:42]} 28. Ng1 {[%clk 0:00:34]}  Nh5 {[%clk 0:00:36]} 29. Ne2 {[%clk 0:00:34]}  Qe6 {[%clk 0:00:30]} 30. Rg1 {[%clk 0:00:33]}  Qf7 {[%clk 0:00:28]} 31. a3 {[%clk 0:00:28]}  a5 {[%clk 0:00:25]} 32. Ng3 {[%clk 0:00:19]}  Nxg3+ {[%clk 0:00:25]} 33. Rxg3 {[%clk 0:00:20]}  b4 {[%clk 0:00:23]} 34. axb4 {[%clk 0:00:18]}  axb4 {[%clk 0:00:23]} 35. Qf3 {[%clk 0:00:13]}  Qe6 {[%clk 0:00:20]} 36. h5 {[%clk 0:00:13]}  Rxh5 {[%clk 0:00:19]} 37. Rxh5 {[%clk 0:00:13]}  gxh5 {[%clk 0:00:19]} 38. Qxh5 {[%clk 0:00:14]}  c3 {[%clk 0:00:15]} 39. bxc3 {[%clk 0:00:13]}  bxc3 {[%clk 0:00:15]} 40. Rg2 {[%clk 0:00:08]}  Qf5 {[%clk 0:00:13]} 41. Qh6 {[%clk 0:00:08]}  Qe4 {[%clk 0:00:10]} 42. Qg7# {[%clk 0:00:07]} 1-0


[Site "https://www.chess.com"]

[Event "Titled Tuesday Blitz December 13 Early 2022"]
[White "Firouzja, Alireza"]
[Black "Zhalmakhanov, Ramazan"]
[WhiteFideId "12573981"]
[BlackFideId "13706357"]
[WhiteElo "2904"]
[BlackElo "2432"]
[Result "1-0"]
[Round "08"]
[TimeControl "180+1"]
[Date "2022.12.13"]
[WhiteClock "0:00:30"]
[BlackClock "0:01:05"]

1. d4 {[%clk 0:02:53]}  d5 {[%clk 0:02:59]} 2. Nf3 {[%clk 0:02:53]}  e6 {[%clk 0:02:56]} 3. Bf4 {[%clk 0:02:45]}  Nf6 {[%clk 0:02:53]} 4. e3 {[%clk 0:02:40]}  Bd6 {[%clk 0:02:53]} 5. Bd3 {[%clk 0:02:39]}  c5 {[%clk 0:02:52]} 6. dxc5 {[%clk 0:02:37]}  Bxc5 {[%clk 0:02:51]} 7. O-O {[%clk 0:01:59]}  O-O {[%clk 0:02:48]} 8. Nbd2 {[%clk 0:01:47]}  Nc6 {[%clk 0:02:37]} 9. e4 {[%clk 0:01:44]}  Be7 {[%clk 0:02:34]} 10. e5 {[%clk 0:01:43]}  Nd7 {[%clk 0:02:34]} 11. Re1 {[%clk 0:01:33]}  Nc5 {[%clk 0:02:34]} 12. Nf1 {[%clk 0:01:23]}  Nxd3 {[%clk 0:02:31]} 13. cxd3 {[%clk 0:01:13]}  b6 {[%clk 0:02:29]} 14. Ng3 {[%clk 0:01:10]}  Ba6 {[%clk 0:02:25]} 15. a3 {[%clk 0:01:09]}  d4 {[%clk 0:02:12]} 16. Re4 {[%clk 0:00:46]}  Qd5 {[%clk 0:02:08]} 17. Qd2 {[%clk 0:00:45]}  Bb7 {[%clk 0:02:03]} 18. Rae1 {[%clk 0:00:43]}  Rfd8 {[%clk 0:01:56]} 19. Bg5 {[%clk 0:00:40]}  Qd7 {[%clk 0:01:38]} 20. Nh5 {[%clk 0:00:38]}  Kh8 {[%clk 0:01:22]} 21. Rg4 {[%clk 0:00:34]}  Rg8 {[%clk 0:01:22]} 22. Qf4 {[%clk 0:00:32]}  Bf8 {[%clk 0:01:12]} 23. Nf6 {[%clk 0:00:29]}  gxf6 {[%clk 0:01:05]} 24. Bxf6+ {[%clk 0:00:29]}  Bg7 {[%clk 0:01:06]} 25. Rxg7 {[%clk 0:00:29]}  Rxg7 {[%clk 0:01:06]} 26. Qh6 {[%clk 0:00:30]}  Rg8 {[%clk 0:01:07]} 27. Ng5 {[%clk 0:00:31]}  Nxe5 {[%clk 0:01:05]} 28. Qxh7# {[%clk 0:00:30]} 1-0


[Site "https://www.chess.com"]

[Event "Titled Tuesday Blitz December 13 Early 2022"]
[White "Gareyev, Timur"]
[Black "Svane, Rasmus"]
[WhiteFideId "14200937"]
[BlackFideId "4657101"]
[WhiteElo "2553"]
[BlackElo "2674"]
[Result "0-1"]
[Round "08"]
[TimeControl "180+1"]
[Date "2022.12.13"]
[WhiteClock "0:00:13"]
[BlackClock "0:00:05"]

1. d4 {[%clk 0:02:29]}  Nf6 {[%clk 0:02:59]} 2. c4 {[%clk 0:02:26]}  e6 {[%clk 0:02:59]} 3. g4 {[%clk 0:02:23]}  Bb4+ {[%clk 0:02:29]} 4. Nc3 {[%clk 0:02:17]}  d5 {[%clk 0:02:27]} 5. Bg2 {[%clk 0:02:11]}  Nxg4 {[%clk 0:02:23]} 6. Nf3 {[%clk 0:02:07]}  Nf6 {[%clk 0:02:05]} 7. Rg1 {[%clk 0:01:59]}  Nc6 {[%clk 0:02:01]} 8. Ne5 {[%clk 0:01:50]}  Bd7 {[%clk 0:01:54]} 9. Bg5 {[%clk 0:01:44]}  h6 {[%clk 0:01:49]} 10. Bh4 {[%clk 0:01:38]}  g5 {[%clk 0:01:29]} 11. Bg3 {[%clk 0:01:36]}  Ne4 {[%clk 0:01:22]} 12. Bxe4 {[%clk 0:01:34]}  dxe4 {[%clk 0:01:23]} 13. d5 {[%clk 0:01:28]}  Nxe5 {[%clk 0:01:17]} 14. Bxe5 {[%clk 0:01:28]}  f6 {[%clk 0:01:18]} 15. Bd4 {[%clk 0:01:24]}  e5 {[%clk 0:01:17]} 16. Be3 {[%clk 0:01:21]}  f5 {[%clk 0:01:14]} 17. Qb3 {[%clk 0:01:21]}  Qe7 {[%clk 0:01:11]} 18. O-O-O {[%clk 0:01:18]}  b6 {[%clk 0:01:04]} 19. d6 {[%clk 0:00:47]}  Bxd6 {[%clk 0:01:04]} 20. Nd5 {[%clk 0:00:47]}  Qe6 {[%clk 0:00:50]} 21. c5 {[%clk 0:00:48]}  bxc5 {[%clk 0:00:50]} 22. Qb7 {[%clk 0:00:43]}  O-O {[%clk 0:00:27]} 23. Bxg5 {[%clk 0:00:43]}  hxg5 {[%clk 0:00:28]} 24. Rxg5+ {[%clk 0:00:43]}  Kf7 {[%clk 0:00:29]} 25. Nxc7 {[%clk 0:00:42]}  Bxc7 {[%clk 0:00:30]} 26. Qxc7 {[%clk 0:00:42]}  Rad8 {[%clk 0:00:22]} 27. Rd6 {[%clk 0:00:42]}  Qe7 {[%clk 0:00:22]} 28. Rgg6 {[%clk 0:00:24]}  Rg8 {[%clk 0:00:22]} 29. Rh6 {[%clk 0:00:23]}  Rg7 {[%clk 0:00:18]} 30. Qb7 {[%clk 0:00:20]}  Kg8 {[%clk 0:00:08]} 31. h4 {[%clk 0:00:14]}  Qf7 {[%clk 0:00:05]} 32. Qc7 {[%clk 0:00:13]}  Qc4+ {[%clk 0:00:06]} 33. Kd2 {[%clk 0:00:12]}  Qb4+ {[%clk 0:00:06]} 34. Kc2 {[%clk 0:00:12]}  Ba4+ {[%clk 0:00:06]} 35. b3 {[%clk 0:00:13]}  Rxc7 {[%clk 0:00:05]} 36. Rxd8+ {[%clk 0:00:13]}  Kg7 {[%clk 0:00:05]} 0-1


[Site "https://www.chess.com"]

[Event "Titled Tuesday Blitz December 13 Early 2022"]
[White "Gjestemoen-VonHirsch, Andre"]
[Black "Namitbir Singh Walia"]
[WhiteFideId "1539531"]
[BlackFideId "35071068"]
[WhiteElo "2198"]
[BlackElo "2239"]
[Result "0-1"]
[Round "08"]
[TimeControl "180+1"]
[Date "2022.12.14"]
[WhiteClock "0:00:12"]
[BlackClock "0:00:18"]

1. b3 {[%clk 0:02:49]}  Nf6 {[%clk 0:02:57]} 2. Bb2 {[%clk 0:02:48]}  g6 {[%clk 0:02:58]} 3. e3 {[%clk 0:02:48]}  Bg7 {[%clk 0:02:58]} 4. Nf3 {[%clk 0:02:48]}  O-O {[%clk 0:02:59]} 5. Be2 {[%clk 0:02:48]}  d6 {[%clk 0:02:58]} 6. c4 {[%clk 0:02:48]}  e5 {[%clk 0:02:59]} 7. Nc3 {[%clk 0:02:43]}  Nc6 {[%clk 0:02:49]} 8. d4 {[%clk 0:02:42]}  a5 {[%clk 0:02:30]} 9. a3 {[%clk 0:02:31]}  Bg4 {[%clk 0:02:29]} 10. O-O {[%clk 0:02:18]}  e4 {[%clk 0:02:18]} 11. Nd2 {[%clk 0:02:16]}  Bxe2 {[%clk 0:02:19]} 12. Qxe2 {[%clk 0:02:17]}  Re8 {[%clk 0:02:19]} 13. d5 {[%clk 0:02:17]}  Nb8 {[%clk 0:02:18]} 14. Rae1 {[%clk 0:01:52]}  Nbd7 {[%clk 0:02:18]} 15. f3 {[%clk 0:01:45]}  Nc5 {[%clk 0:02:17]} 16. Ncxe4 {[%clk 0:01:19]}  Nfxe4 {[%clk 0:02:13]} 17. Nxe4 {[%clk 0:01:16]}  Bxb2 {[%clk 0:01:52]} 18. Qxb2 {[%clk 0:01:08]}  Nxe4 {[%clk 0:01:52]} 19. fxe4 {[%clk 0:01:06]}  Rxe4 {[%clk 0:01:52]} 20. Rf3 {[%clk 0:01:04]}  Qe7 {[%clk 0:01:52]} 21. Qc3 {[%clk 0:01:01]}  Re8 {[%clk 0:01:52]} 22. Kf2 {[%clk 0:01:00]}  b6 {[%clk 0:01:51]} 23. Ke2 {[%clk 0:00:56]}  Qh4 {[%clk 0:01:43]} 24. h3 {[%clk 0:00:54]}  a4 {[%clk 0:01:44]} 25. Ref1 {[%clk 0:00:28]}  axb3 {[%clk 0:01:30]} 26. g4 {[%clk 0:00:28]}  f5 {[%clk 0:01:16]} 27. gxf5 {[%clk 0:00:27]}  Rxc4 {[%clk 0:01:15]} 28. Qxb3 {[%clk 0:00:19]}  Qe4 {[%clk 0:01:10]} 29. fxg6 {[%clk 0:00:18]}  hxg6 {[%clk 0:01:04]} 30. Kd2 {[%clk 0:00:14]}  Qxd5+ {[%clk 0:01:02]} 31. Qd3 {[%clk 0:00:14]}  Qxd3+ {[%clk 0:01:01]} 32. Kxd3 {[%clk 0:00:15]}  Ra4 {[%clk 0:01:01]} 33. Rf7 {[%clk 0:00:15]}  Rxa3+ {[%clk 0:01:01]} 34. Kd4 {[%clk 0:00:15]}  c6 {[%clk 0:00:44]} 35. R7f6 {[%clk 0:00:14]}  Rexe3 {[%clk 0:00:29]} 36. Rxg6+ {[%clk 0:00:14]}  Kh7 {[%clk 0:00:30]} 37. Rg4 {[%clk 0:00:12]}  Rad3+ {[%clk 0:00:30]} 38. Kc4 {[%clk 0:00:12]}  Rc3+ {[%clk 0:00:27]} 39. Kb4 {[%clk 0:00:11]}  Rb3+ {[%clk 0:00:27]} 40. Ka4 {[%clk 0:00:12]}  Ra3+ {[%clk 0:00:27]} 41. Kb4 {[%clk 0:00:12]}  Reb3+ {[%clk 0:00:17]} 42. Kc4 {[%clk 0:00:12]}  b5+ {[%clk 0:00:18]} 43. Kd4 {[%clk 0:00:12]}  Ra4# {[%clk 0:00:18]} 0-1


[Site "https://www.chess.com"]